[Event "Titled Tuesday Blitz March 14 Late 2023"]
[White "Desideri, Ricardo Maruchi"]
[Black "Jenkins, Drake"]
[WhiteFideId "2110440"]
[BlackFideId "2022397"]
[WhiteElo "1945"]
[BlackElo "2234"]
[Result "0-1"]
[Round "11"]
[TimeControl "180+2"]
[Date "2023.03.14"]
[WhiteClock "0:00:01"]
[BlackClock "0:00:20"]

1. e4 {[%clk 0:02:53]}  c5 {[%clk 0:02:31]} 2. Nf3 {[%clk 0:02:49]}  g6 {[%clk 0:02:31]} 3. d4 {[%clk 0:02:45]}  cxd4 {[%clk 0:02:32]} 4. Nxd4 {[%clk 0:02:43]}  Nf6 {[%clk 0:02:33]} 5. Nc3 {[%clk 0:02:41]}  Nc6 {[%clk 0:02:33]} 6. Be3 {[%clk 0:02:36]}  h5 {[%clk 0:02:31]} 7. h3 {[%clk 0:02:24]}  Bg7 {[%clk 0:02:31]} 8. Qd2 {[%clk 0:02:21]}  O-O {[%clk 0:02:28]} 9. O-O-O {[%clk 0:02:19]}  Qa5 {[%clk 0:02:19]} 10. Nb3 {[%clk 0:02:16]}  Qd8 {[%clk 0:02:04]} 11. f4 {[%clk 0:02:02]}  d6 {[%clk 0:01:58]} 12. Be2 {[%clk 0:01:54]}  a5 {[%clk 0:01:55]} 13. g4 {[%clk 0:01:41]}  h4 {[%clk 0:01:52]} 14. g5 {[%clk 0:01:38]}  Ne8 {[%clk 0:01:47]} 15. Nd5 {[%clk 0:01:06]}  a4 {[%clk 0:01:45]} 16. Nd4 {[%clk 0:00:56]}  a3 {[%clk 0:01:42]} 17. b3 {[%clk 0:00:54]}  Be6 {[%clk 0:01:28]} 18. f5 {[%clk 0:00:36]}  Bxd5 {[%clk 0:01:25]} 19. exd5 {[%clk 0:00:34]}  Ne5 {[%clk 0:01:21]} 20. fxg6 {[%clk 0:00:17]}  Nxg6 {[%clk 0:01:16]} 21. Bd3 {[%clk 0:00:12]}  Ne5 {[%clk 0:01:13]} 22. g6 {[%clk 0:00:10]}  Qa5 {[%clk 0:00:52]} 23. gxf7+ {[%clk 0:00:07]}  Rxf7 {[%clk 0:00:53]} 24. Qg2 {[%clk 0:00:05]}  Qc3 {[%clk 0:00:31]} 25. Nf5 {[%clk 0:00:04]}  Nxd3+ {[%clk 0:00:19]} 26. Rxd3 {[%clk 0:00:02]}  Qb2+ {[%clk 0:00:19]} 27. Kd2 {[%clk 0:00:01]}  Rxf5 {[%clk 0:00:20]} 0-1


[Site "https://www.chess.com"]

[Event "Titled Tuesday Blitz March 14 Late 2023"]
[White "Souza, Gustavo Horokoski De"]
[Black "Antonio, Jorge Carlos"]
[WhiteFideId "2146584"]
[BlackFideId "113190"]
[WhiteElo "1859"]
[BlackElo "2247"]
[Result "0-1"]
[Round "11"]
[TimeControl "180+2"]
[Date "2023.03.14"]
[WhiteClock "0:00:03"]
[BlackClock "0:00:45"]

1. d4 {[%clk 0:02:49]}  d5 {[%clk 0:02:59]} 2. c4 {[%clk 0:02:34]}  c6 {[%clk 0:02:59]} 3. Nc3 {[%clk 0:02:33]}  Nf6 {[%clk 0:02:58]} 4. Nf3 {[%clk 0:02:31]}  Bf5 {[%clk 0:02:57]} 5. cxd5 {[%clk 0:02:15]}  cxd5 {[%clk 0:02:55]} 6. Qb3 {[%clk 0:02:09]}  Bc8 {[%clk 0:02:41]} 7. Ne5 {[%clk 0:01:37]}  e6 {[%clk 0:02:36]} 8. Bg5 {[%clk 0:01:32]}  Be7 {[%clk 0:02:35]} 9. e3 {[%clk 0:01:32]}  O-O {[%clk 0:02:35]} 10. Bd3 {[%clk 0:01:28]}  h6 {[%clk 0:02:33]} 11. Bh4 {[%clk 0:01:28]}  Nc6 {[%clk 0:02:33]} 12. f4 {[%clk 0:01:19]}  Bd7 {[%clk 0:02:26]} 13. O-O {[%clk 0:01:14]}  b6 {[%clk 0:02:14]} 14. Nxd7 {[%clk 0:01:11]}  Qxd7 {[%clk 0:02:11]} 15. f5 {[%clk 0:01:06]}  e5 {[%clk 0:02:06]} 16. Bxf6 {[%clk 0:01:03]}  Bxf6 {[%clk 0:02:01]} 17. Nxd5 {[%clk 0:01:02]}  exd4 {[%clk 0:01:53]} 18. Nxf6+ {[%clk 0:01:02]}  gxf6 {[%clk 0:01:53]} 19. Bb5 {[%clk 0:00:58]}  Qd6 {[%clk 0:01:42]} 20. Bxc6 {[%clk 0:00:52]}  Qxc6 {[%clk 0:01:42]} 21. exd4 {[%clk 0:00:51]}  Rad8 {[%clk 0:01:41]} 22. Rad1 {[%clk 0:00:50]}  Qd5 {[%clk 0:01:40]} 23. Qe3 {[%clk 0:00:48]}  Kh7 {[%clk 0:01:33]} 24. b3 {[%clk 0:00:44]}  Rg8 {[%clk 0:01:32]} 25. Qf3 {[%clk 0:00:35]}  Qxf3 {[%clk 0:01:27]} 26. Rxf3 {[%clk 0:00:36]}  Rge8 {[%clk 0:01:25]} 27. Kf2 {[%clk 0:00:35]}  Re4 {[%clk 0:01:24]} 28. Re3 {[%clk 0:00:27]}  Rexd4 {[%clk 0:01:22]} 29. Rxd4 {[%clk 0:00:26]}  Rxd4 {[%clk 0:01:22]} 30. Re7 {[%clk 0:00:26]}  Rd2+ {[%clk 0:01:22]} 31. Ke3 {[%clk 0:00:20]}  Rxa2 {[%clk 0:01:20]} 32. Rxf7+ {[%clk 0:00:17]}  Kg8 {[%clk 0:01:20]} 33. Rxf6 {[%clk 0:00:17]}  Rxg2 {[%clk 0:01:12]} 34. Rxh6 {[%clk 0:00:14]}  Rb2 {[%clk 0:01:11]} 35. Rg6+ {[%clk 0:00:13]}  Kf7 {[%clk 0:01:10]} 36. h4 {[%clk 0:00:13]}  Rxb3+ {[%clk 0:01:10]} 37. Kd4 {[%clk 0:00:14]}  Rh3 {[%clk 0:01:04]} 38. Rg4 {[%clk 0:00:07]}  Kf6 {[%clk 0:01:03]} 39. Ke4 {[%clk 0:00:08]}  Kf7 {[%clk 0:00:57]} 40. Ke5 {[%clk 0:00:07]}  a5 {[%clk 0:00:56]} 41. Kd5 {[%clk 0:00:06]}  b5 {[%clk 0:00:53]} 42. Kc5 {[%clk 0:00:06]}  b4 {[%clk 0:00:53]} 43. Kc4 {[%clk 0:00:06]}  b3 {[%clk 0:00:52]} 44. Rd4 {[%clk 0:00:04]}  a4 {[%clk 0:00:49]} 45. Kb4 {[%clk 0:00:03]}  b2 {[%clk 0:00:46]} 46. Rd7+ {[%clk 0:00:03]}  Kf6 {[%clk 0:00:45]} 47. Rd1 {[%clk 0:00:03]}  a3 {[%clk 0:00:45]} 0-1